[Event "Mistrovství Čech mládeže 2023 - HD12"]
[Site "Harrachov, Czech Republic"]
[Date "2023.10.22"]
[Round "2.15"]
[White "Koutecká, Magdalena"]
[Black "Hokr, Matyáš"]
[Result "0-1"]
[TimeControl "90m + 30s"]
[WhiteElo "1123"]
[BlackElo "1352"]

1. e4 {[%clk 01:30:59]} e6 {[%clk 01:30:30]} {[%emt 00:00:31]} 2. d4 {[%clk
01:31:22]} {[%emt 00:00:06]} d5 {[%clk 01:30:47]} {[%emt 00:00:13]} 3. Nc3
{[%clk 01:31:15]} {[%emt 00:00:36]} dxe4 {[%clk 01:30:37]} {[%emt 00:00:41]} 4.
f3 {[%clk 01:30:33]} {[%emt 00:01:12]} Bb4 {[%clk 01:30:16]} {[%emt 00:00:51]}
5. fxe4 {[%clk 01:29:40]} {[%emt 00:01:23]} Bxc3+ {[%clk 01:30:30]} {[%emt
00:00:17]} 6. bxc3 {[%clk 01:29:46]} {[%emt 00:00:23]} Qh4+ {[%clk 01:30:51]}
{[%emt 00:00:09]} 7. Kd2 {[%clk 01:23:16]} {[%emt 00:07:00]} Qxe4 {[%clk
01:30:42]} {[%emt 00:00:39]} 8. Bb2 {[%clk 01:21:40]} {[%emt 00:02:06]} Qf4+
{[%clk 01:30:05]} {[%emt 00:01:08]} 9. Ke1 {[%clk 01:19:33]} {[%emt 00:02:36]}
Nf6 {[%clk 01:28:52]} {[%emt 00:01:43]} 10. Qd2 {[%clk 01:15:33]} {[%emt
00:04:27]} Qxd2+ {[%clk 01:27:19]} {[%emt 00:02:06]} 11. Kxd2 {[%clk 01:15:59]}
{[%emt 00:00:03]} O-O {[%emt 00:00:30]} 12. Re1 {[%clk 01:13:08]} {[%emt
00:03:19]} Nc6 {[%clk 01:25:02]} {[%emt 00:02:51]} 13. Bd3 {[%clk 01:11:36]}
{[%emt 00:02:01]} Ng4 {[%clk 01:22:53]} {[%emt 00:02:39]} 14. Re2 {[%clk
01:07:55]} {[%emt 00:04:11]} Re8 {[%clk 01:22:22]} {[%emt 00:01:02]} 15. h3
{[%clk 01:06:47]} {[%emt 00:01:38]} Nf6 {[%clk 01:22:25]} {[%emt 00:00:27]} 16.
Nf3 {[%clk 01:06:24]} {[%emt 00:00:50]} Bd7 {[%clk 01:20:07]} {[%emt 00:02:50]}
17. Rb1 {[%clk 01:01:39]} {[%emt 00:05:14]} a6 {[%clk 01:17:39]} {[%emt
00:02:59]} 18. c4 {[%clk 00:57:53]} {[%emt 00:04:15]} Nb4 {[%clk 01:15:25]}
{[%emt 00:02:44]} 19. Ba3 {[%clk 00:52:36]} {[%emt 00:05:48]} Nxd3 {[%clk
01:14:39]} {[%emt 00:01:15]} 20. cxd3 {[%clk 00:52:37]} {[%emt 00:00:29]} b5
{[%clk 01:13:14]} {[%emt 00:01:56]} 21. Ne5 {[%clk 00:51:21]} {[%emt 00:01:46]}
h6 {[%clk 01:10:52]} {[%emt 00:02:52]} 22. Bc1 {[%clk 00:47:37]} {[%emt
00:04:13]} Rab8 {[%clk 01:08:46]} {[%emt 00:02:37]} 23. Rf2 {[%clk 00:44:07]}
{[%emt 00:03:59]} Red8 {[%clk 01:03:50]} {[%emt 00:05:26]} 24. Kc3 {[%clk
00:41:58]} {[%emt 00:02:40]} Be8 {[%clk 01:03:38]} {[%emt 00:00:42]} 25. Bf4
{[%clk 00:40:31]} {[%emt 00:01:56]} bxc4 {[%clk 01:01:42]} {[%emt 00:02:27]} 26.
Rxb8 {[%clk 00:40:01]} {[%emt 00:01:00]} Rxb8 {[%clk 01:01:50]} {[%emt
00:00:22]} 27. Nxc4 {[%clk 00:39:57]} {[%emt 00:00:34]} Nd5+ {[%clk 01:01:25]}
{[%emt 00:00:56]} 28. Kd2 {[%clk 00:38:36]} {[%emt 00:01:48]} Nxf4 {[%clk
01:00:45]} {[%emt 00:01:12]} 29. Rxf4 {[%clk 00:38:57]} {[%emt 00:00:09]} Bb5
{[%clk 00:59:24]} {[%emt 00:01:51]} 30. Re4 {[%clk 00:35:12]} {[%emt 00:04:14]}
Bxc4 {[%clk 00:58:55]} {[%emt 00:01:00]} 31. dxc4 {[%clk 00:35:30]} {[%emt
00:00:13]} Rb2+ {[%clk 00:59:16]} {[%emt 00:00:09]} 32. Kc3 {[%clk 00:35:11]}
{[%emt 00:00:47]} Rxa2 {[%clk 00:59:25]} {[%emt 00:00:22]} 33. Rg4 {[%clk
00:35:00]} {[%emt 00:00:38]} f5 {[%clk 00:59:29]} {[%emt 00:00:29]} 34. Rg6
{[%clk 00:35:15]} {[%emt 00:00:12]} Kf7 {[%clk 00:59:53]} {[%emt 00:00:09]} 35.
Rg3 {[%clk 00:35:14]} {[%emt 00:00:28]} Ra3+ {[%clk 01:00:21]} {[%emt
00:00:05]} 0-1

[Event "Mistrovství Čech mládeže 2023 - HD12"]
[Site "Harrachov, Czech Republic"]
[Date "2023.10.22"]
[Round "2.20"]
[White "Vlček, Vítězslav"]
[Black "Frantsev, Iegor"]
[Result "1/2-1/2"]
[TimeControl "90m + 30s"]
[WhiteElo "1120"]
[BlackElo "1397"]

1. d4 {[%clk 01:30:51]} {[%emt 00:00:08]} d5 {[%clk 01:30:55]} {[%emt
00:00:06]} 2. c4 {[%clk 01:31:02]} {[%emt 00:00:18]} e6 {[%clk 01:31:13]}
{[%emt 00:00:13]} 3. Nc3 {[%clk 01:30:50]} {[%emt 00:00:42]} Nf6 {[%clk
01:31:17]} {[%emt 00:00:26]} 4. Nf3 {[%clk 01:30:38]} {[%emt 00:00:41]} Nbd7
{[%clk 01:31:17]} {[%emt 00:00:31]} 5. Bf4 {[%clk 01:29:23]} {[%emt 00:01:45]}
a6 {[%clk 01:30:48]} {[%emt 00:00:58]} 6. e3 {[%clk 01:28:57]} {[%emt
00:00:57]} dxc4 {[%clk 01:28:41]} {[%emt 00:02:38]} 7. Bxc4 {[%clk 01:29:08]}
{[%emt 00:00:18]} b5 {[%clk 01:28:20]} {[%emt 00:00:51]} 8. Bd3 {[%clk
01:28:40]} {[%emt 00:00:58]} Bb7 {[%clk 01:28:03]} {[%emt 00:00:45]} 9. O-O
{[%clk 01:27:43]} {[%emt 00:01:29]} Be7 {[%clk 01:26:11]} {[%emt 00:02:22]} 10.
e4 {[%clk 01:24:01]} {[%emt 00:04:12]} O-O {[%clk 01:25:21]} {[%emt 00:01:20]}
11. Qc2 {[%clk 01:21:17]} {[%emt 00:03:13]} h6 {[%clk 01:24:10]} {[%emt
00:01:42]} 12. Rac1 {[%clk 01:17:48]} {[%emt 00:03:59]} c5 {[%clk 01:20:41]}
{[%emt 00:03:59]} 13. dxc5 {[%clk 01:07:14]} {[%emt 00:11:04]} Nxc5 {[%clk
01:19:16]} {[%emt 00:01:55]} 14. Rfd1 {[%clk 01:03:48]} {[%emt 00:03:55]} Nxd3
{[%clk 01:14:30]} {[%emt 00:05:17]} 15. Rxd3 {[%clk 01:02:14]} {[%emt
00:02:04]} Qb6 {[%clk 01:09:47]} {[%emt 00:05:05]} 16. Re3 {[%clk 00:55:01]}
{[%emt 00:07:51]} Rac8 {[%clk 01:08:19]} {[%emt 00:01:55]} 17. Qd1 {[%clk
00:51:25]} {[%emt 00:04:06]} Rfd8 {[%clk 01:06:11]} {[%emt 00:02:40]} 18. Qe1
{[%clk 00:50:45]} {[%emt 00:01:10]} Bc5 {[%clk 01:04:16]} {[%emt 00:02:25]} 19.
Re2 {[%clk 00:50:04]} {[%emt 00:01:12]} a5 {[%clk 00:45:00]} {[%emt 00:19:47]}
20. a3 {[%clk 00:45:56]} {[%emt 00:04:37]} Ba6 {[%clk 00:42:41]} {[%emt
00:02:48]} 21. Rd2 {[%clk 00:44:02]} {[%emt 00:02:25]} Rxd2 {[%clk 00:41:00]}
{[%emt 00:02:11]} 22. Bxd2 {[%clk 00:42:53]} {[%emt 00:01:38]} Rd8 {[%clk
00:33:00]} {[%emt 00:08:24]} 23. Bf4 {[%clk 00:41:56]} {[%emt 00:01:34]} Bb7
{[%clk 00:28:25]} {[%emt 00:05:05]} 24. h3 {[%clk 00:31:58]} {[%emt 00:10:28]}
Be7 {[%clk 00:12:19]} {[%emt 00:16:33]} 25. Qe3 {[%clk 00:27:49]} {[%emt
00:04:43]} Qxe3 {[%clk 00:12:19]} {[%emt 00:00:30]} 26. Bxe3 {[%clk 00:28:14]}
{[%emt 00:00:04]} b4 {[%clk 00:12:07]} {[%emt 00:00:42]} 27. axb4 {[%clk
00:26:57]} {[%emt 00:01:48]} axb4 {[%clk 00:12:22]} {[%emt 00:00:15]} 28. Ne2
{[%clk 00:23:35]} {[%emt 00:03:51]} Bxe4 {[%clk 00:12:21]} {[%emt 00:00:32]} 29.
Ned4 {[%clk 00:23:07]} {[%emt 00:00:57]} Bxf3 {[%clk 00:11:48]} {[%emt
00:01:04]} 30. Nxf3 {[%clk 00:23:33]} {[%emt 00:00:03]} Nd5 {[%clk 00:11:33]}
{[%emt 00:00:44]} 31. Bc5 {[%clk 00:20:58]} {[%emt 00:03:06]} Rc8 {[%clk
00:10:28]} {[%emt 00:01:33]} 32. Be3 {[%clk 00:21:19]} {[%emt 00:00:11]} Rxc1+
{[%clk 00:10:02]} {[%emt 00:00:56]} 33. Bxc1 {[%clk 00:21:48]} {[%emt
00:00:02]} Bf6 {[%clk 00:10:14]} {[%emt 00:00:18]} 34. Kf1 {[%clk 00:18:44]}
{[%emt 00:03:32]} Nb6 {[%clk 00:09:45]} {[%emt 00:01:00]} 35. b3 {[%clk
00:18:39]} {[%emt 00:00:35]} Bc3 {[%clk 00:09:56]} {[%emt 00:00:19]} 36. Bd2
{[%clk 00:19:06]} {[%emt 00:00:04]} Bxd2 {[%clk 00:09:36]} {[%emt 00:00:50]} 37.
Nxd2 {[%clk 00:19:34]} {[%emt 00:00:02]} Kf8 {[%clk 00:09:27]} {[%emt
00:00:39]} 38. Ke2 {[%clk 00:19:55]} {[%emt 00:00:08]} Ke7 {[%clk 00:09:08]}
{[%emt 00:00:48]} 39. Kd3 {[%clk 00:20:19]} {[%emt 00:00:08]} 1/2-1/2

[Event "Mistrovství Čech mládeže 2023 - HD12"]
[Site "Harrachov, Czech Republic"]
[Date "2023.10.23"]
[Round "3.1"]
[White "Fadrný, Jáchym"]
[Black "Honcharov, Makar"]
[Result "0-1"]
[TimeControl "90m + 30s"]
[WhiteElo "1365"]
[BlackElo "1872"]

1. d4 {[%clk 01:30:55]} {[%emt 00:00:05]} Nf6 {[%clk 01:30:54]} {[%emt
00:00:05]} 2. c4 {[%clk 01:31:08]} {[%emt 00:00:18]} g6 {[%clk 01:31:17]}
{[%emt 00:00:06]} 3. Nc3 {[%clk 01:31:03]} {[%emt 00:00:36]} Bg7 {[%clk
01:31:36]} {[%emt 00:00:10]} 4. e4 {[%clk 01:30:44]} {[%emt 00:00:50]} d6
{[%clk 01:32:02]} {[%emt 00:00:04]} 5. Bd3 {[%clk 01:29:07]} {[%emt 00:02:07]}
O-O {[%clk 01:32:09]} {[%emt 00:00:23]} 6. Nge2 {[%clk 01:27:22]} {[%emt
00:02:14]} e5 {[%clk 01:32:25]} {[%emt 00:00:14]} 7. d5 {[%clk 01:27:02]}
{[%emt 00:00:51]} a5 {[%clk 01:32:30]} {[%emt 00:00:24]} 8. O-O {[%clk
01:26:02]} {[%emt 00:01:31]} Na6 {[%clk 01:32:48]} {[%emt 00:00:12]} 9. a3
{[%clk 01:25:03]} {[%emt 00:01:28]} Nc5 {[%clk 01:33:12]} {[%emt 00:00:07]} 10.
Bc2 {[%clk 01:23:55]} {[%emt 00:01:37]} Nfd7 {[%clk 01:32:48]} {[%emt
00:00:54]} 11. Be3 {[%clk 01:21:39]} {[%emt 00:02:46]} f5 {[%clk 01:33:06]}
{[%emt 00:00:13]} 12. exf5 {[%clk 01:17:51]} {[%emt 00:04:18]} gxf5 {[%clk
01:33:08]} {[%emt 00:00:27]} 13. f4 {[%clk 01:16:45]} {[%emt 00:01:36]} b6
{[%clk 01:32:19]} {[%emt 00:01:20]} 14. b3 {[%clk 01:06:45]} {[%emt 00:10:30]}
Qe8 {[%clk 01:28:23]} {[%emt 00:04:24]} 15. Qd2 {[%clk 00:56:42]} {[%emt
00:10:34]} Nf6 {[%clk 01:24:56]} {[%emt 00:03:57]} 16. h3 {[%clk 00:53:32]}
{[%emt 00:03:40]} e4 {[%clk 01:23:00]} {[%emt 00:02:25]} 17. Rac1 {[%clk
00:47:31]} {[%emt 00:06:32]} Kh8 {[%clk 01:20:21]} {[%emt 00:03:08]} 18. Nb5
{[%clk 00:36:39]} {[%emt 00:11:24]} Qf7 {[%clk 01:18:24]} {[%emt 00:02:27]} 19.
b4 {[%clk 00:30:06]} {[%emt 00:07:04]} axb4 {[%clk 01:17:32]} {[%emt 00:01:21]}
20. axb4 {[%clk 00:28:58]} {[%emt 00:01:37]} Na6 {[%clk 01:16:32]} {[%emt
00:01:28]} 21. Bb1 {[%clk 00:25:59]} {[%emt 00:03:32]} Bd7 {[%clk 01:14:31]}
{[%emt 00:02:31]} 22. Ned4 {[%clk 00:25:22]} {[%emt 00:01:06]} Rg8 {[%clk
01:14:24]} {[%emt 00:00:37]} 23. Na3 {[%clk 00:21:03]} {[%emt 00:04:46]} Qg6
{[%clk 01:14:02]} {[%emt 00:00:55]} 24. Rf2 {[%clk 00:16:13]} {[%emt 00:05:19]}
Nh5 {[%clk 01:11:12]} {[%emt 00:03:21]} 25. Ndb5 {[%clk 00:11:37]} {[%emt
00:05:07]} Rae8 {[%clk 01:08:33]} {[%emt 00:03:09]} 26. c5 {[%clk 00:10:48]}
{[%emt 00:01:20]} bxc5 {[%emt 00:00:20]} 27. bxc5 {[%emt 00:00:13]} dxc5 {[%clk
01:08:15]} {[%emt 00:00:14]} 28. Bxc5 {[%clk 00:10:31]} {[%emt 00:00:46]} Nxc5
{[%clk 01:08:40]} {[%emt 00:00:06]} 29. Qe2 {[%clk 00:08:55]} {[%emt 00:02:06]}
Ng3 {[%clk 01:08:49]} {[%emt 00:00:21]} 30. Qe3 {[%clk 00:08:26]} {[%emt
00:00:59]} Nd3 {[%clk 01:08:33]} {[%emt 00:00:45]} 31. Bxd3 {[%clk 00:08:35]}
{[%emt 00:00:22]} exd3 {[%clk 01:08:58]} {[%emt 00:00:05]} 32. Qxd3 {[%clk
00:08:47]} {[%emt 00:00:18]} Ne4 {[%clk 01:09:08]} {[%emt 00:00:19]} 0-1

[Event "Mistrovství Čech mládeže 2023 - HD12"]
[Site "Harrachov, Czech Republic"]
[Date "2023.10.23"]
[Round "3.2"]
[White "Zrůst, Lukáš"]
[Black "Mauric, Jan"]
[Result "1-0"]
[TimeControl "90m + 30s"]
[WhiteElo "1685"]
[BlackElo "1260"]

1. Nf3 {[%clk 01:30:51]} {[%emt 00:00:07]} b6 {[%clk 01:29:08]} {[%emt
00:01:53]} 2. d4 {[%clk 01:31:08]} {[%emt 00:00:13]} Bb7 {[%clk 01:29:01]}
{[%emt 00:00:38]} 3. c4 {[%clk 01:31:18]} {[%emt 00:00:18]} e6 {[%clk
01:29:13]} {[%emt 00:00:20]} 4. Nc3 {[%clk 01:31:19]} {[%emt 00:00:28]} Nf6
{[%clk 01:28:57]} {[%emt 00:00:46]} 5. g3 {[%clk 01:30:36]} {[%emt 00:01:13]}
d5 {[%clk 01:27:18]} {[%emt 00:02:09]} 6. Bg2 {[%clk 01:30:04]} {[%emt
00:01:03]} c5 {[%clk 01:21:14]} {[%emt 00:06:23]} 7. O-O {[%clk 01:27:38]}
{[%emt 00:03:06]} Nc6 {[%clk 01:19:59]} {[%emt 00:01:46]} 8. cxd5 {[%clk
01:26:12]} {[%emt 00:01:56]} exd5 {[%clk 01:18:13]} {[%emt 00:02:16]} 9. dxc5
{[%clk 01:25:59]} {[%emt 00:00:43]} Bxc5 {[%clk 01:18:02]} {[%emt 00:00:41]} 10.
Bg5 {[%clk 01:21:42]} {[%emt 00:04:45]} d4 {[%clk 01:11:09]} {[%emt 00:07:25]}
11. Bxf6 {[%clk 01:19:44]} {[%emt 00:02:28]} Qxf6 {[%clk 01:10:09]} {[%emt
00:01:30]} 12. Ne4 {[%clk 01:18:36]} {[%emt 00:01:38]} Qe7 {[%clk 01:09:13]}
{[%emt 00:01:26]} 13. Nxc5 {[%clk 01:18:23]} {[%emt 00:00:43]} bxc5 {[%clk
01:09:14]} {[%emt 00:00:30]} 14. Re1 {[%clk 01:15:34]} {[%emt 00:03:17]} Rc8
{[%clk 01:06:23]} {[%emt 00:03:21]} 15. e3 {[%clk 01:15:24]} {[%emt 00:00:40]}
O-O {[%clk 01:04:20]} {[%emt 00:02:33]} 16. exd4 {[%clk 01:15:08]} {[%emt
00:00:47]} Qd6 {[%clk 01:02:50]} {[%emt 00:02:00]} 17. dxc5 {[%clk 01:13:58]}
{[%emt 00:01:40]} Qxc5 {[%clk 01:03:13]} {[%emt 00:00:06]} 18. Rc1 {[%clk
01:12:59]} {[%emt 00:01:30]} Qb6 {[%clk 01:02:17]} {[%emt 00:01:26]} 19. Qa4
{[%clk 01:04:34]} {[%emt 00:08:55]} Nb4 {[%clk 00:59:10]} {[%emt 00:03:37]} 20.
Rxc8 {[%clk 01:03:30]} {[%emt 00:01:33]} Bxc8 {[%clk 00:58:03]} {[%emt
00:01:38]} 21. Bf1 {[%clk 00:56:16]} {[%emt 00:07:43]} Be6 {[%clk 00:41:24]}
{[%emt 00:17:10]} 22. a3 {[%clk 00:55:46]} {[%emt 00:01:00]} Nc6 {[%clk
00:38:44]} {[%emt 00:02:52]} 23. Qb5 {[%clk 00:54:03]} {[%emt 00:02:30]} Rb8
{[%clk 00:36:47]} {[%emt 00:02:27]} 24. Qxb6 {[%clk 00:53:57]} {[%emt
00:00:36]} Rxb6 {[%clk 00:37:11]} {[%emt 00:00:07]} 25. b4 {[%clk 00:54:12]}
{[%emt 00:00:14]} g6 {[%clk 00:35:37]} {[%emt 00:02:05]} 26. Kg2 {[%clk
00:50:24]} {[%emt 00:04:17]} Bd5 {[%clk 00:29:30]} {[%emt 00:06:38]} 27. Rd1
{[%clk 00:49:53]} {[%emt 00:01:00]} Ne7 {[%clk 00:27:53]} {[%emt 00:02:07]} 28.
Be2 {[%clk 00:47:53]} {[%emt 00:02:30]} Rc6 {[%clk 00:25:44]} {[%emt 00:02:40]}
29. Rd3 {[%clk 00:45:50]} {[%emt 00:02:32]} Re6 {[%clk 00:22:00]} {[%emt
00:04:15]} 30. Kf1 {[%clk 00:42:53]} {[%emt 00:03:24]} Rc6 {[%clk 00:16:32]}
{[%emt 00:05:59]} 31. Nd4 {[%clk 00:37:18]} {[%emt 00:06:07]} Rc1+ {[%clk
00:14:40]} {[%emt 00:02:22]} 32. Rd1 {[%clk 00:37:19]} {[%emt 00:00:28]} Rxd1+
{[%clk 00:14:42]} {[%emt 00:00:28]} 33. Bxd1 {[%clk 00:37:34]} {[%emt
00:00:15]} Nc6 {[%clk 00:14:22]} {[%emt 00:00:51]} 34. Nxc6 {[%clk 00:37:27]}
{[%emt 00:00:36]} Bxc6 {[%clk 00:14:47]} {[%emt 00:00:05]} 35. Ke2 {[%clk
00:37:40]} {[%emt 00:00:17]} Kf8 {[%clk 00:14:52]} {[%emt 00:00:26]} 36. Ke3
{[%clk 00:38:00]} {[%emt 00:00:09]} Ke7 {[%clk 00:15:10]} {[%emt 00:00:12]} 37.
Bf3 {[%clk 00:38:06]} {[%emt 00:00:23]} Bd7 {[%clk 00:08:08]} {[%emt 00:07:33]}
38. Kd4 {[%clk 00:37:37]} {[%emt 00:00:59]} Kd6 {[%clk 00:08:30]} {[%emt
00:00:09]} 39. Be2 {[%clk 00:37:14]} {[%emt 00:00:53]} f6 {[%clk 00:07:59]}
{[%emt 00:01:01]} 40. f4 {[%clk 00:36:33]} {[%emt 00:01:10]} g5 {[%clk
00:05:28]} {[%emt 00:03:02]} 41. fxg5 {[%clk 00:35:42]} {[%emt 00:01:21]} fxg5
{[%clk 00:05:39]} {[%emt 00:00:17]} 42. b5 {[%clk 00:34:31]} {[%emt 00:01:42]}
h6 {[%clk 00:04:19]} {[%emt 00:01:51]} 43. Bd3 {[%clk 00:34:36]} {[%emt
00:00:24]} Be6 {[%clk 00:04:14]} {[%emt 00:00:35]} 44. Bc4 {[%clk 00:33:56]}
{[%emt 00:01:10]} Bd7 {[%clk 00:04:36]} {[%emt 00:00:09]} 45. a4 {[%clk
00:34:06]} {[%emt 00:00:19]} Bf5 {[%clk 00:04:46]} {[%emt 00:00:21]} 46. Bd5
{[%clk 00:31:21]} {[%emt 00:03:14]} Bd7 {[%clk 00:04:15]} {[%emt 00:01:01]} 47.
Kc4 {[%clk 00:30:57]} {[%emt 00:00:54]} Bg4 {[%clk 00:02:40]} {[%emt 00:02:05]}
48. Bg2 {[%clk 00:30:50]} {[%emt 00:00:36]} Bd1 {[%clk 00:01:58]} {[%emt
00:01:14]} 49. Kb4 {[%clk 00:30:25]} {[%emt 00:00:55]} Kc7 {[%clk 00:00:44]}
{[%emt 00:01:43]} 50. a5 {[%clk 00:30:14]} {[%emt 00:00:41]} Bg4 {[%emt
00:00:27]} 51. Kc5 {[%clk 00:30:22]} {[%emt 00:00:20]} Bd7 {[%clk 00:00:37]}
{[%emt 00:00:42]} 52. b6+ {[%clk 00:29:29]} 1-0

[Event "Mistrovství Čech mládeže 2023 - HD12"]
[Site "Harrachov, Czech Republic"]
[Date "2023.10.23"]
[Round "3.3"]
[White "Hokr, Matyáš"]
[Black "Artamonov, Mikhail"]
[Result "0-1"]
[TimeControl "90m + 30s"]
[WhiteElo "1352"]
[BlackElo "1458"]

1. Nf3 {[%clk 01:30:43]} {[%emt 00:00:06]} Nf6 {[%clk 01:30:54]} {[%emt
00:00:07]} 2. b3 {[%clk 01:30:43]} {[%emt 00:00:30]} g6 {[%clk 01:30:58]}
{[%emt 00:00:26]} 3. Bb2 {[%clk 01:30:45]} {[%emt 00:00:28]} Bg7 {[%clk
01:30:58]} {[%emt 00:00:29]} 4. e3 {[%clk 01:30:10]} {[%emt 00:01:05]} O-O
{[%clk 01:30:40]} {[%emt 00:00:48]} 5. Be2 {[%clk 01:28:28]} {[%emt 00:02:12]}
d6 {[%clk 01:31:00]} {[%emt 00:00:11]} 6. O-O {[%clk 01:27:25]} {[%emt
00:01:33]} e5 {[%clk 01:30:28]} {[%emt 00:01:02]} 7. d4 {[%clk 01:25:53]}
{[%emt 00:02:02]} Nfd7 {[%clk 01:29:46]} {[%emt 00:01:12]} 8. Nbd2 {[%clk
01:21:11]} {[%emt 00:05:11]} Nc6 {[%clk 01:28:23]} {[%emt 00:01:53]} 9. Ne4
{[%clk 01:15:35]} {[%emt 00:06:06]} d5 {[%clk 01:13:00]} {[%emt 00:15:54]} 10.
Ng3 {[%clk 01:11:30]} {[%emt 00:04:34]} e4 {[%clk 01:11:41]} {[%emt 00:01:50]}
11. Nd2 {[%clk 01:11:21]} {[%emt 00:00:38]} Ne7 {[%clk 01:11:18]} {[%emt
00:00:54]} 12. f3 {[%clk 01:08:12]} {[%emt 00:03:39]} f5 {[%clk 01:09:04]}
{[%emt 00:02:44]} 13. f4 {[%clk 01:01:01]} {[%emt 00:07:41]} c6 {[%clk
01:05:15]} {[%emt 00:04:20]} 14. c4 {[%clk 00:57:45]} {[%emt 00:03:45]} Kh8
{[%clk 01:04:38]} {[%emt 00:01:07]} 15. Nh1 {[%clk 00:45:03]} {[%emt 00:13:11]}
Nf6 {[%clk 00:57:36]} {[%emt 00:07:33]} 16. Nf2 {[%clk 00:43:15]} {[%emt
00:02:17]} Neg8 {[%clk 00:56:25]} {[%emt 00:01:42]} 17. c5 {[%clk 00:40:56]}
{[%emt 00:02:49]} Nd7 {[%clk 00:51:38]} {[%emt 00:05:17]} 18. Qc2 {[%clk
00:36:45]} {[%emt 00:04:41]} g5 {[%clk 00:44:12]} {[%emt 00:07:56]} 19. g3
{[%clk 00:27:55]} {[%emt 00:09:20]} gxf4 {[%clk 00:43:16]} {[%emt 00:01:26]} 20.
gxf4 {[%clk 00:27:45]} {[%emt 00:00:39]} Qh4 {[%clk 00:43:18]} {[%emt
00:00:28]} 21. Kg2 {[%clk 00:26:17]} {[%emt 00:01:58]} Nh6 {[%clk 00:41:18]}
{[%emt 00:02:30]} 22. Rh1 {[%clk 00:24:01]} {[%emt 00:02:46]} Rg8 {[%clk
00:40:21]} {[%emt 00:01:27]} 23. Kf1 {[%clk 00:22:16]} {[%emt 00:02:15]} Nf6
{[%clk 00:39:16]} {[%emt 00:01:36]} 24. Qd1 {[%clk 00:14:56]} {[%emt 00:07:50]}
Nfg4 {[%clk 00:38:09]} {[%emt 00:01:36]} 25. Bxg4 {[%clk 00:12:55]} {[%emt
00:02:31]} fxg4 {[%clk 00:37:51]} {[%emt 00:00:50]} 26. Qe2 {[%clk 00:09:42]}
{[%emt 00:03:42]} Nf5 {[%clk 00:37:29]} {[%emt 00:00:52]} 27. Ke1 {[%clk
00:07:37]} {[%emt 00:02:35]} Bf6 {[%clk 00:35:00]} {[%emt 00:02:59]} 28. Nf1
{[%clk 00:04:53]} {[%emt 00:03:14]} Be7 {[%clk 00:13:58]} {[%emt 00:21:32]} 29.
Kd2 {[%clk 00:03:59]} {[%emt 00:01:23]} b5 {[%clk 00:10:24]} {[%emt 00:04:05]}
30. b4 {[%clk 00:03:22]} {[%emt 00:01:07]} a5 {[%clk 00:10:00]} {[%emt
00:00:54]} 31. a3 {[%clk 00:03:30]} {[%emt 00:00:22]} Bd7 {[%clk 00:07:48]}
{[%emt 00:02:42]} 32. Rg1 {[%clk 00:02:45]} {[%emt 00:01:15]} Nh6 {[%clk
00:07:31]} {[%emt 00:00:47]} 33. Rg2 {[%clk 00:02:20]} {[%emt 00:00:55]} axb4
{[%clk 00:07:48]} {[%emt 00:00:13]} 34. axb4 {[%clk 00:02:30]} {[%emt
00:00:19]} Rxa1 {[%clk 00:07:58]} {[%emt 00:00:21]} 35. Bxa1 {[%emt 00:00:13]}
Ra8 {[%clk 00:07:53]} {[%emt 00:00:30]} 36. Bb2 {[%clk 00:03:08]} {[%emt
00:00:14]} Ra4 {[%clk 00:07:01]} {[%emt 00:01:22]} 37. Kc3 {[%clk 00:03:12]}
{[%emt 00:00:25]} Qh5 {[%clk 00:05:56]} {[%emt 00:01:35]} 38. Kb3 {[%clk
00:02:37]} {[%emt 00:01:06]} Qe8 {[%clk 00:05:53]} {[%emt 00:00:33]} 39. Qd1
{[%clk 00:02:47]} {[%emt 00:00:20]} Qa8 {[%clk 00:05:50]} {[%emt 00:00:33]} 40.
Qb1 {[%clk 00:02:56]} {[%emt 00:00:21]} Bd8 {[%clk 00:05:33]} {[%emt 00:00:47]}
41. Qd1 {[%clk 00:01:29]} {[%emt 00:01:57]} Rxb4+ {[%clk 00:05:25]} {[%emt
00:00:37]} 42. Kc3 {[%clk 00:01:32]} {[%emt 00:00:27]} Rc4+ {[%clk 00:05:20]}
{[%emt 00:00:36]} 43. Kd2 {[%clk 00:01:49]} {[%emt 00:00:12]} Qa5+ {[%clk
00:04:53]} {[%emt 00:00:58]} 44. Ke2 {[%clk 00:02:07]} {[%emt 00:00:12]} Qa2
{[%clk 00:04:11]} {[%emt 00:01:12]} 45. Qd2 {[%clk 00:02:11]} {[%emt 00:00:26]}
b4 {[%clk 00:02:46]} {[%emt 00:01:55]} 46. Nd1 {[%clk 00:01:58]} {[%emt
00:00:42]} Qb1 {[%clk 00:01:12]} {[%emt 00:02:05]} 47. Ke1 {[%clk 00:01:53]}
{[%emt 00:00:34]} g3 {[%clk 00:01:00]} {[%emt 00:00:42]} 48. Nxg3 {[%clk
00:01:45]} {[%emt 00:00:38]} Bh3 {[%clk 00:00:42]} {[%emt 00:00:48]} 49. Re2
{[%emt 00:00:40]} Bg4 {[%clk 00:01:04]} {[%emt 00:00:06]} 50. Rf2 {[%clk
00:01:42]} {[%emt 00:00:26]} Bf3 {[%clk 00:01:11]} {[%emt 00:00:23]} 51. Nxe4
{[%clk 00:01:21]} {[%emt 00:00:51]} dxe4 {[%clk 00:00:59]} {[%emt 00:00:42]} 52.
d5+ {[%clk 00:01:33]} {[%emt 00:00:18]} Kg8 {[%clk 00:01:28]} {[%emt 00:00:01]}
53. Rg2+ {[%clk 00:01:38]} {[%emt 00:00:25]} Ng4 {[%clk 00:00:34]} {[%emt
00:01:24]} 54. dxc6 {[%clk 00:01:39]} {[%emt 00:00:29]} Bh4+ {[%clk 00:00:53]}
{[%emt 00:00:11]} 55. Rg3 {[%clk 00:01:47]} {[%emt 00:00:22]} Bxg3+ {[%clk
00:01:09]} {[%emt 00:00:14]} 56. hxg3 {[%clk 00:02:08]} {[%emt 00:00:09]} Qxd1+
{[%clk 00:01:32]} {[%emt 00:00:07]} 57. Qxd1 {[%clk 00:02:26]} {[%emt
00:00:12]} Bxd1 {[%clk 00:01:56]} {[%emt 00:00:05]} 0-1